Workbook

Sheet MSU
B1: Eero Okkonen | E1: 25.1.1958 Sotkamo
B2: SUPERPESIS | E2: Runkosarja | I2: Kärkilyönnit (KL), pesänvälit | P2: Runkosarja TOP-30 | U2: Ylempi loppusarja | AB2: Ylempi loppusarja TOP-10 | AG2: Play off, voitot, voittoprosentti | AL2: Arvo-ottelut | AO2: Mitalit
B3: Vuosi | C3: Sija | D3: Seura | E3: OTT | F3: KUN | G3: LÖI | H3: TOI | I3: KL | J3: 0 > 1 | K3: 1 > 2 | L3: 2 > 3 | M3: 3 > k | N3: KL-% | P3: LÖI | Q3: TOI | R3: L+T | S3: KL | U3: OTT | V3: KUN | W3: LÖI | X3: TOI | Y3: KL | Z3: KL-% | AB3: LÖI | AC3: TOI | AD3: L+T | AE3: KL | AG3: Puolivälierät | AH3: Välierät | AI3: Pronssi | AJ3: Finaalit | AL3: IL | AM3: LL | AN3: Cup | AO3: K | AP3: H | AQ3: P
B4: 1982 | C4: 7. | D4: SoJy | F4: ykkössarja
B5: 1983 | C5: 1. | D5: SoJy | F5: ykkössarja
B6: 1984 | C6: 6. | D6: SoJy | E6: 22 | F6: 0 | G6: 7 | H6: 25 | I6: 115 | J6: 75 | K6: 17 | L6: 16 | M6: 7 | N6: 56.7 % | Q6: 15. | S6: 23. | AL6: 1 | AM6: 1
B7: 1985 | C7: 8. | D7: SoJy | E7: 22 | F7: 0 | G7: 6 | H7: 22 | I7: 109 | J7: 65 | K7: 22 | L7: 16 | M7: 6 | N7: 59.6 % | Q7: 17. | S7: 24.
B8: 1986 | C8: 12. | D8: SoJy | E8: 16 | F8: 0 | G8: 6 | H8: 11 | I8: 80 | J8: 36 | K8: 23 | L8: 15 | M8: 6 | N8: 62.0 %
B9: 1987 | C9: 6. | D9: SiiPo | E9: 22 | F9: 0 | G9: 4 | H9: 10 | I9: 82 | J9: 46 | K9: 20 | L9: 12 | M9: 4 | N9: 49.4 % | U9: 2 | V9: 0 | W9: 0 | X9: 1 | Y9: 12 | Z9: 70.6 % | AG9: 9-12 IPV
B10: 1988 | C10: 4. | D10: KiU | E10: 22 | F10: 0 | G10: 12 | H10: 15 | I10: 113 | J10: 52 | K10: 30 | L10: 19 | M10: 12 | N10: 63.1 % | S10: 22. | U10: 7 | V10: 0 | W10: 1 | X10: 4 | Y10: 36 | Z10: 61.0 % | AE10: 7. | AG10: 2-0 VM | AH10: 1-2 SMJ | AI10: 3-12 KaMa | AL10: 1
B11: 1989 | C11: 9. | D11: KiU | E11: 22 | F11: 0 | G11: 6 | H11: 22 | I11: 112 | J11: 42 | K11: 44 | L11: 20 | M11: 6 | N11: 68.3 % | Q11: 13. | S11: 17. | AM11: 1
B12: 1990 | C12: 1. | D12: SoJy | E12: 26 | F12: 1 | G12: 7 | H12: 12 | I12: 111 | J12: 38 | K12: 47 | L12: 18 | M12: 8 | N12: 53.1 % | U12: 9 | V12: 0 | W12: 4 | X12: 7 | Y12: 37 | Z12: 51.4 % | AC12: 6. | AD12: 10. | AG12: 2-1 SiiPe | AH12: 2-1 Tahko | AJ12: 2-1 IPV | AM12: 1 | AO12: 1
B13: 1991 | C13: 2. | D13: SoJy | E13: 25 | F13: 0 | G13: 11 | H13: 10 | I13: 88 | J13: 24 | K13: 34 | L13: 19 | M13: 11 | N13: 48.9 % | U13: 7 | V13: 1 | W13: 4 | X13: 3 | Y13: 24 | Z13: 51.1 % | AG13: 2-0 AA | AH13: 2-1 Tahko | AJ13: 0-2 IPV | AP13: 1
B14: 1992 | C14: 1. | D14: SoJy | E14: 25 | F14: 0 | G14: 20 | H14: 12 | I14: 67 | J14: 18 | K14: 13 | L14: 16 | M14: 20 | N14: 37.2 % | U14: 7 | V14: 0 | W14: 0 | X14: 2 | Y14: 21 | Z14: 38.2 % | AG14: 2-0 ViVe | AH14: 2-0 Lippo | AJ14: 3-0 Tahko | AO14: 1
B15: 1993 | C15: 1. | D15: SoJy | E15: 27 | F15: 3 | G15: 25 | H15: 16 | I15: 115 | J15: 36 | K15: 18 | L15: 33 | M15: 28 | N15: 46.4 % | P15: 23. | U15: 8 | V15: 0 | W15: 2 | X15: 1 | Y15: 45 | Z15: 63.4 % | AG15: 3-0 SMJ | AH15: 2-1 Lippo | AJ15: 2-0 IPV | AL15: 1 | AO15: 1
B16: 1994 | C16: 3. | D16: SoJy | E16: 12 | F16: 0 | G16: 4 | H16: 1 | I16: 35 | J16: 20 | K16: 2 | L16: 9 | M16: 4 | N16: 53.0 % | U16: 4 | V16: 0 | W16: 3 | X16: 2 | Y16: 23 | Z16: 69.7 % | AE16: 8. | AH16: 0-2 Tahko | AI16: 2-0 AA | AQ16: 1
B17: Yhteensä | E17: 241 | F17: 4 | G17: 108 | H17: 156 | I17: 1027 | J17: 452 | K17: 270 | L17: 193 | M17: 112 | N17: 53.9 % | O17: 1917.327386 | P17: 0-0-0 | Q17: 0-0-0 | R17: 0-0-0 | S17: 0-0-0 | U17: 44 | V17: 1 | W17: 14 | X17: 20 | Y17: 198 | Z17: 55.9 % | AB17: 0-0-0 | AC17: 0-0-0 | AD17: 0-0-0 | AE17: 0-0-0 | AG17: 5/6 | AH17: 4/6 | AI17: 1/2 | AJ17: 3/4 | AK17: 0.0 % | AL17: 3 | AM17: 3 | AN17: 0 | AO17: 3 | AP17: 1 | AQ17: 1
AG18: 83.3 % | AH18: 66.7 % | AI18: 50.0 % | AJ18: 75.0 %
B19: Pesispörssi | D19: 898.3
B21: URA SUPERISSA | E21: OTT | F21: KUN | G21: LÖI | H21: TOI | I21: KL | K21: ka/L | L21: ka/T | M21: ka/KL | N21: KL-% | P21: ENSIMMÄISET RUNKOSARJASSA | AG21: ENSIMMÄISET PUDOTUSPELEISSÄ | AL21: YLEISÖ
B22: Runkosarja | E22: 241 | F22: 4 | G22: 108 | H22: 156 | I22: 1027 | K22: 0.46 | L22: 0.65 | M22: 4.26 | N22: 53.9 % | O22: =PRODUCT(I22/N22) -> 1906.78393 | P22: Ottelu | R22: 06.05. 1984 SoJy - Tahko 10-5 | Y22: 1. ottelu | AB22: 26 v 3 kk 11 pv | AG22: Ottelu | AH22: 1. 12.08. 1987 IPV - SiiPo 6-1 | AL22: 2883 | AN22: 29 v 6 kk 18 pv
B23: Ylempi loppusarja | E23: 44 | F23: 1 | G23: 14 | H23: 20 | I23: 198 | K23: 0.34 | L23: 0.45 | M23: 4.50 | N23: 55.9 % | O23: =PRODUCT(I23/N23) -> 354.2039356 | P23: Lyöty | R23: 13.05. 1984 SoJy - IPV 14-4 | Y23: 3. ottelu | AB23: 26 v 3 kk 18 pv | AG23: Lyöty | AH23: 4. 07.08. 1988 KiU - VM 9-2 | AL23: 2552 | AN23: 30 v 6 kk 13 pv
B24: Alempi loppusarja | E24: 11 | F24: 3 | G24: 7 | H24: 14 | I24: 65 | K24: 0.91 | L24: 1.27 | M24: 5.91 | N24: 68.0 % | O24: =PRODUCT(I24/N24) -> 95.58823529 | P24: Tuotu | R24: 06.05. 1984 SoJy - Tahko 10-5 | Y24: 1. ottelu | AB24: 26 v 3 kk 11 pv | AG24: Tuotu | AH24: 2. 16.08. 1987 SiiPo - IPV 8-6 | AL24: 3500 | AN24: 29 v 6 kk 22 pv
B25: KAIKKI | E25: 296 | F25: 8 | G25: 129 | H25: 190 | I25: 1290 | K25: 0.46 | L25: 0.64 | M25: 4.36 | N25: =PRODUCT(I25/O25) -> 54.7 % | O25: =SUM(O22:O24) -> 2356.5761 | P25: Kunnari | R25: 18.08. 1985 HoNsU - SoJy 3-14 | Y25: 46. ottelu | AB25: 27 v 6 kk 24 pv | AG25: Kunnari | AH25: 10. 15.08. 1991 AA - SoJy 4-7 | AL25: 3641 | AN25: 33 v 6 kk 21 pv
B27: Paras kärkilyöntiprosentti 1989
B29: Seurat | D29: SoJy = Sotkamon Jymy (1909) | K29: SiiPo = Siilinjärven Ponnistus (1907) | S29: KiU = Kiteen Urheilijat (1931)
B31: RUNKOSARJA, KA / OTT | F31: IKÄ | G31: OTT | H31: LÖI | I31: TOI | J31: TEHO | K31: KL | M31: SIJOITUS | P31: OTT | Q31: LÖI | R31: TOI | S31: TEHO | U31: KL | W31: RUNKOSARJA, TASASATASET, ka. / peli | AI31: KATSOJIA YLI 5000 ( 2 )
B32: 1984 | C32: 6. | D32: SoJy | F32: 26 | G32: 22 | H32: =PRODUCT((F6+G6)/E6) -> 0.32 | I32: =PRODUCT(H6/E6) -> 1.14 | J32: =PRODUCT(F6+G6+H6)/E6 -> 1.45 | K32: =PRODUCT(I6/E6) -> 5.23 | M32: 1945 - 1984 | O32: 20 | P32: 695. | Q32: 745. | R32: 491. | S32: 599. | U32: 198. | W32: Ottelutilasto | AI32: 6048 | AJ32: 16. 02.05. 1993 SoJy - LP 12-6
B33: 1985 | C33: 8. | D33: SoJy | F33: 27 | G33: 22 | H33: =PRODUCT((F7+G7)/E7) -> 0.27 | I33: =PRODUCT(H7/E7) -> 1.00 | J33: =PRODUCT(F7+G7+H7)/E7 -> 1.27 | K33: =PRODUCT(I7/E7) -> 4.95 | M33: 1945 - 1985 | O33: 20 | P33: 524. | Q33: 630. | R33: 354. | S33: 457. | U33: 137. | W33: 200 | Y33: 96. 14.06. 1992 Tahko - SoJy 13-14 | AG33: 27 v 4 kk 20 pv | AI33: 5162 | AJ33: 51. 17.06. 1993 Lippo - SoJy 10-4
B34: 1986 | C34: 12. | D34: SoJy | F34: 28 | G34: 16 | H34: 0.38 | I34: 0.69 | J34: 1.06 | K34: 5.00 | M34: 1945 - 1986 | O34: 21 | P34: 467. | Q34: 568. | R34: 318. | S34: 420. | U34: 121.
B35: 1987 | C35: 6. | D35: SiiPo | F35: 29 | G35: 22 | H35: 0.18 | I35: 0.45 | J35: 0.64 | K35: 3.73 | M35: 1945 - 1987 | P35: 357. | Q35: 530. | R35: 278. | S35: 380. | U35: 106. | W35: Kärkilyöjätilasto | AI35: YLEISÖENNÄTYS KOTONA
B36: 1988 | C36: 4. | D36: KiU | F36: 30 | G36: 22 | H36: 0.55 | I36: 0.68 | J36: 1.23 | K36: 5.14 | M36: 1945 - 1988 | P36: 288. | Q36: 446. | R36: 229. | S36: 312. | U36: 82. | W36: 1000 | Y36: 48. 22.05. 1994 SoJy - PattU 1-0 | AG36: 233. ottelu | AH36: 4.29 | AI36: 6048 | AJ36: 16. 02.05. 1993 SoJy - LP 12-6
B37: 1989 | C37: 9. | D37: KiU | F37: 31 | G37: 22 | H37: 0.27 | I37: 1.00 | J37: 1.27 | K37: 5.09 | M37: 1945 - 1989 | P37: 241. | Q37: 412. | R37: 180. | S37: 267. | U37: 68.
B38: 1990 | C38: 1. | D38: SoJy | F38: 32 | G38: 26 | H38: 0.31 | I38: 0.46 | J38: 0.77 | K38: 4.27 | M38: 1945 - 1990 | P38: 180. | Q38: 366. | R38: 167. | S38: 240. | U38: 62. | AI38: YLEISÖENNÄTYS VIERAISSA
B39: 1991 | C39: 2. | D39: SoJy | F39: 33 | G39: 25 | H39: 0.44 | I39: 0.40 | J39: 0.84 | K39: 3.52 | M39: 1945 - 1991 | P39: 135. | Q39: 321. | R39: 151. | S39: 222. | U39: 59. | AI39: 5162 | AJ39: 51. 17.06. 1993 Lippo - SoJy 10-4
B40: 1992 | C40: 1. | D40: SoJy | F40: 34 | G40: 25 | H40: 0.80 | I40: 0.48 | J40: 1.28 | K40: 2.68 | M40: 1945 - 1992 | P40: 101. | Q40: 253. | R40: 139. | S40: 187. | U40: 55.
B41: 1993 | C41: 1. | D41: SoJy | F41: 35 | G41: 27 | H41: 1.04 | I41: 0.59 | J41: 1.63 | K41: 4.26 | M41: 1945 - 1993 | P41: 78. | Q41: 188. | R41: 120. | S41: 156. | U41: 49. | AI41: RUNKOSARJA JA YLEMPI LOPPUSARJA
B42: 1994 | C42: 3. | D42: SoJy | F42: 36 | G42: 12 | H42: 0.33 | I42: 0.08 | J42: 0.42 | K42: 2.92 | M42: 1945 - 1994 | P42: 75. | Q42: 180. | R42: 125. | S42: 155. | U42: 49. | AI42: KATSOJIA | AJ42: 678 158
AI43: OTTELUT | AJ43: 285
AI44: KA / OTT | AJ44: 2380
B47: PLAY OFF, KA / OTT | F47: IKÄ | G47: OTT | H47: LÖI | I47: TOI | J47: TEHO | K47: KL | M47: SIJOITUS | P47: OTT | Q47: LÖI | R47: TOI | S47: TEHO | U47: KL | W47: PLAY OFF, TASASATASET, ka. / peli
B48: 1987 | C48: 6. | D48: SiiPo | F48: 29 | G48: 2 | H48: =PRODUCT((V9+W9)/U9) -> 0.00 | I48: =PRODUCT(X9/U9) -> 0.50 | J48: =PRODUCT(V9+W9+X9)/U9 -> 0.50 | K48: =PRODUCT(Y9/U9) -> 6.00 | M48: 1979 - 1987 | O48: 20 | P48: 149. | R48: 126. | S48: 145. | U48: 127.
B49: 1988 | C49: 4. | D49: KiU | F49: 30 | G49: 7 | H49: 0.14 | I49: 0.57 | J49: 0.71 | K49: =PRODUCT(Y10/U10) -> 5.14 | M49: 1979 - 1988 | O49: 20 | P49: 95. | Q49: 145. | R49: 84. | S49: 119. | U49: 72.
B50: 1989 | C50: 9. | D50: KiU | F50: 31 | M50: 1979 - 1989 | O50: 21 | P50: 107. | Q50: 160. | R50: 95. | S50: 136. | U50: 80.
B51: 1990 | C51: 1. | D51: SoJy | F51: 32 | G51: 9 | H51: 0.44 | I51: 0.78 | J51: 1.22 | K51: 4.11 | M51: 1979 - 1990 | P51: 68. | Q51: 117. | R51: 62. | S51: 80. | U51: 54.
B52: 1991 | C52: 2. | D52: SoJy | F52: 33 | G52: 7 | H52: 0.71 | I52: 0.43 | J52: 1.14 | K52: 3.43 | M52: 1979 - 1991 | P52: 49. | Q52: 75. | R52: 49. | S52: 69. | U52: 48.
B53: 1992 | C53: 1. | D53: SoJy | F53: 34 | G53: 7 | H53: 0.00 | I53: 0.29 | J53: 0.29 | K53: 3.00 | M53: 1979 - 1992 | P53: 34. | Q53: 83. | R53: 48. | S53: 69. | U53: 44.
B54: 1993 | C54: 1. | D54: SoJy | F54: 35 | G54: 8 | H54: =PRODUCT((V15+W15)/U15) -> 0.25 | I54: =PRODUCT(X15/U15) -> 0.13 | J54: =PRODUCT(V15+W15+X15)/U15 -> 0.38 | K54: =PRODUCT(Y15/U15) -> 5.63 | M54: 1979 - 1993 | P54: 25. | Q54: 77. | R54: 50. | S54: 68. | U54: 29.
B55: 1994 | C55: 3. | D55: SoJy | F55: 36 | G55: 4 | H55: =PRODUCT((V16+W16)/U16) -> 0.75 | I55: =PRODUCT(X16/U16) -> 0.50 | J55: =PRODUCT(V16+W16+X16)/U16 -> 1.25 | K55: =PRODUCT(Y16/U16) -> 5.75 | M55: 1979 - 1994 | P55: 16. | Q55: 68. | R55: 45. | S55: 62. | U55: 23.

Sheet MYP
B1: Eero Okkonen | E1: 25.1.1958 Sotkamo
B2: YKKÖSPESIS | E2: Runkosarja | L2: Runkosarja TOP-10 | Q2: Jatkosarjat | X2: SUOMENSARJA | AA2: Runkosarja | AH2: Runkosarja TOP-10 | AM2: Jatkosarjat
B3: Vuosi | C3: Sija | D3: Seura | E3: OTT | F3: KUN | G3: LÖI | H3: TOI | I3: KL | J3: KL-% | L3: LÖI | M3: TOI | N3: L+T | O3: KL | Q3: OTT | R3: KUN | S3: LÖI | T3: TOI | U3: KL | V3: KL-% | X3: Vuosi | Y3: Sija | Z3: Seura | AA3: OTT | AB3: KUN | AC3: LÖI | AD3: TOI | AE3: KL | AF3: KL-% | AH3: LÖI | AI3: TOI | AJ3: L+T | AK3: KL | AM3: OTT | AN3: KUN | AO3: LÖI | AP3: TOI | AQ3: KL | AR3: KL-%
B4: 1982 | C4: 7. | D4: SoJy | E4: 8 | F4: 0 | G4: 0 | H4: 10 | Q4: 10 | R4: 0 | S4: 5 | T4: 14
B5: 1983 | C5: 1. | D5: SoJy | E5: 10 | F5: 0 | G5: 1 | H5: 17 | M5: 2. | Q5: 10 | R5: 1 | S5: 3 | T5: 16
B6: YHTEENSÄ | E6: =SUM(E4:E5) -> 18 | F6: =SUM(F4:F5) -> 0 | G6: =SUM(G4:G5) -> 1 | H6: =SUM(H4:H5) -> 27 | I6: =SUM(I4:I5) -> 0 | J6: 0.0 % | K6: =SUM(K4:K5) -> 0 | Q6: =SUM(Q4:Q5) -> 20 | R6: =SUM(R4:R5) -> 1 | S6: =SUM(S4:S5) -> 8 | T6: =SUM(T4:T5) -> 30 | U6: =SUM(U4:U5) -> 0 | V6: 0.0 % | W6: =SUM(W4:W5) -> 0 | X6: YHTEENSÄ | AA6: =SUM(AA4:AA5) -> 0 | AB6: =SUM(AB4:AB5) -> 0 | AC6: =SUM(AC4:AC5) -> 0 | AD6: =SUM(AD4:AD5) -> 0 | AE6: =SUM(AE4:AE5) -> 0 | AF6: 0.0 % | AG6: =SUM(AG4:AG5) -> 0 | AM6: =SUM(AM4:AM5) -> 0 | AN6: =SUM(AN4:AN5) -> 0 | AO6: =SUM(AO4:AO5) -> 0 | AP6: =SUM(AP4:AP5) -> 0 | AQ6: =SUM(AQ4:AQ5) -> 0 | AR6: 0.0 % | AS6: =SUM(AS4:AS5) -> 0
B8: KAIKKI OTTELUT | E8: OTT | F8: KUN | G8: LÖI | H8: TOI | I8: KL | J8: KL-% | L8: ka/L | M8: ka/T | N8: ka/l+t | O8: ka/kl | R8: Seurat | T8: SoJy = Sotkamon Jymy (1909)
B9: SUPERPESIS | E9: 296 | F9: 8 | G9: 129 | H9: 190 | I9: 1290 | J9: 54.7 % | K9: =PRODUCT(I9/J9) -> 2358.318099 | L9: =PRODUCT((F9+G9)/E9) -> 0.46 | M9: =PRODUCT(H9/E9) -> 0.64 | N9: =PRODUCT((F9+G9+H9)/E9) -> 1.10 | O9: =PRODUCT(I9/E9) -> 4.36 | T9: SiiPo = Siilinjärven Ponnistus (1907)
B10: YKKÖSPESIS | E10: =PRODUCT(E6+Q6) -> 38 | F10: =PRODUCT(F6+R6) -> 1 | G10: =PRODUCT(G6+S6) -> 9 | H10: =PRODUCT(H6+T6) -> 57 | I10: =PRODUCT(I6+U6) -> 0 | J10: 0.0 % | K10: 0 | L10: =PRODUCT((F10+G10)/E10) -> 0.26 | M10: =PRODUCT(H10/E10) -> 1.50 | N10: =PRODUCT((F10+G10+H10)/E10) -> 1.76 | O10: =PRODUCT(I10/E10) -> 0.00 | T10: KiU = Kiteen Urheilijat (1931)
B11: SUOMENSARJA | E11: =PRODUCT(AA6+AM6) -> 0 | F11: =PRODUCT(AB6+AN6) -> 0 | G11: =PRODUCT(AC6+AO6) -> 0 | H11: =PRODUCT(AD6+AP6) -> 0 | I11: =PRODUCT(AE6+AQ6) -> 0 | J11: 0.0 % | K11: 0 | L11: 0.00 | M11: 0.00 | N11: 0.00 | O11: 0.00
B12: YHTEENSÄ | E12: =SUM(E9:E11) -> 334 | F12: =SUM(F9:F11) -> 9 | G12: 138 | H12: 247 | I12: 1290 | J12: 0.0 % | K12: =SUM(K9:K11) -> 2358.318099 | L12: =PRODUCT((F12+G12)/E12) -> 0.44 | M12: =PRODUCT(H12/E12) -> 0.74 | N12: =PRODUCT((F12+G12+H12)/E12) -> 1.18 | O12: 4.36

Sheet Arvo-ottelut
B1: ITÄ - LÄNSI - KORTTI
B2: Eero Okkonen | C2: 25.1.1958 Sotkamo
B3: MIEHET | C3: Itä - Länsi, tulos | D3: Joukkue | E3: Seura | G3: V | H3: T | I3: H | J3: Up. | K3: Lj. | L3: Palk. | M3: O | N3: K | O3: L | P3: T | Q3: KL | R3: 1 | S3: 2 | T3: 3 | U3: k | V3: KL-% | W3: Pelinjohtaja | X3: Yleisöä
B4: 19.08. 1984 Stadion, Helsinki | C4: 21-4 | D4: Itä | E4: SoJy | G4: 1 | J4: 3k | K4: 9 | M4: 1 | O4: 2 | P4: 1 | Q4: 4/10 | R4: 1/2 | S4: 1/2 | T4: 0/2 | U4: 2/4 | V4: 40.0 % | W4: Pekka Arffman | X4: 13500
B5: 21.08. 1988 Vaasa | C5: 4-3 | D5: Itä | E5: KiU | G5: 1 | J5: 2k | K5: 7 | M5: 1 | P5: 1 | Q5: 4/8 | R5: 4/4 | S5: 0/3 | T5: 0/1 | V5: 50.0 % | W5: Pekka Arffman | X5: 7090
B6: 25.07. 1993 Sotkamo | C6: 8-1 | D6: Itä | E6: SoJy | G6: 1 | K6: jok | M6: 1 | W6: Juha Tanskanen | X6: 6168
B7: Yhteensä | G7: =SUM(G4:G6) -> 3 | M7: =SUM(M4:M6) -> 3 | O7: 2 | P7: 2 | Q7: 8/18 | R7: 5/6 | S7: 1/5 | T7: 0/3 | U7: 2/4 | V7: 44.4 %
B8: Ikä ensimmäisessä ottelussa | C8: 26 v 6 kk 25 pv
B10: A-POJAT | C10: Itä - Länsi, tulos | D10: Joukkue | E10: Seura | G10: V | H10: T | I10: H | J10: Up. | K10: Lj. | L10: Palk. | M10: O | N10: K | O10: L | P10: T | Q10: KL | R10: 1 | S10: 2 | T10: 3 | U10: k | V10: KL-% | W10: Pelinjohtaja | X10: Yleisöä
B11: 13.08. 1977 Riihimäki | C11: 12-2 | D11: Itä | E11: SoJy | G11: 1 | J11: 3k | K11: 9 | M11: 1 | O11: 2 | W11: Jukka-Pekka Löfman
B13: LIITTO - LEHDISTÖ - KORTTI
B14: MIEHET | C14: Tulos | D14: Joukkue | E14: Seura | G14: V | H14: T | I14: H | J14: Up. | K14: Lj. | L14: Palk. | M14: O | N14: K | O14: L | P14: T | Q14: KL | R14: 1 | S14: 2 | T14: 3 | U14: k | V14: KL-% | W14: Pelinjohtaja | X14: Yleisöä
B15: 15.06. 1984 Mikkeli | C15: 6-5 | D15: Liitto | E15: SoJy | G15: 1 | J15: 2k | K15: 1 | M15: 1 | O15: 1 | Q15: 4/7 | R15: 1/3 | S15: 1/1 | T15: 1/1 | U15: 1/2 | V15: 57.1 % | W15: Aulis Väisänen | X15: 2450
B16: 08.06. 1989 Tampere | C16: 4-6 | D16: Liitto | E16: KiU | I16: 1 | K16: jok | M16: 1 | O16: 1 | Q16: 4/4 | R16: 1/1 | S16: 2/2 | U16: 1/1 | V16: 100.0 % | W16: Pekka Peltomäki | X16: 1110
B17: 07.06. 1990 Hyvinkää | C17: 8-14 | D17: Lehdistö | E17: SoJy | G17: 1 | J17: 2k | K17: 5 | L17: III p | M17: 1 | O17: 1 | P17: 2 | Q17: 4/7 | R17: 0/1 | S17: 2/2 | T17: 1/1 | U17: 1/3 | V17: 57.1 % | W17: Tuomo Olli | X17: 1480
B18: Yhteensä | G18: =SUM(G15:G17) -> 2 | I18: =SUM(I15:I17) -> 1 | M18: =SUM(M15:M17) -> 3 | O18: 3 | P18: 2 | Q18: 12/18 | R18: 2/5 | S18: 5/5 | T18: 1/1 | U18: 3/6 | V18: 66.7 %
B19: Ikä ensimmäisessä ottelussa | C19: 26 v 4 kk 21 pv

Sheet Kärkilyönnit
B1: KÄRKILYÖNNIT RUNKOSARJASSA | V1: VUOSITTAISET SIJOITUKSET TOP - 30
G2: 0 > 1 | J2: 1 > 2 | M2: 2 > 3 | P2: 3 > k | S2: Yhteensä
B3: Vuosi | C3: Sija | D3: Seura | E3: OTT | F3: KL | G3: YHT | H3: % | I3: KL | J3: YHT | K3: % | L3: KL | M3: YHT | N3: % | O3: KL | P3: YHT | Q3: % | R3: KL | S3: YHT | T3: % | V3: Vuosi | W3: Sija | X3: Seura | Y3: 0 > 1 | Z3: 1 > 2 | AA3: 2 > 3 | AB3: 3 > k | AC3: KL
B4: 1984 | C4: 6. | D4: SoJy | E4: 22 | F4: 75 | G4: 108 | H4: =PRODUCT(F4/G4) -> 69.4 % | I4: 17 | J4: 43 | K4: =PRODUCT(I4/J4) -> 39.5 % | L4: 16 | M4: 33 | N4: =PRODUCT(L4/M4) -> 48.5 % | O4: 7 | P4: 19 | Q4: =PRODUCT(O4/P4) -> 36.8 % | R4: 115 | S4: =PRODUCT(G4+J4+M4+P4) -> 203 | T4: 56.7 % | V4: 1984 | W4: 6. | X4: SoJy | Y4: 2. | AC4: 23.
B5: 1985 | C5: 9. | D5: SoJy | E5: 22 | F5: 65 | G5: 101 | H5: =PRODUCT(F5/G5) -> 64.4 % | I5: 22 | J5: 34 | K5: =PRODUCT(I5/J5) -> 64.7 % | L5: 16 | M5: 29 | N5: =PRODUCT(L5/M5) -> 55.2 % | O5: 6 | P5: 19 | Q5: =PRODUCT(O5/P5) -> 31.6 % | R5: 109 | S5: 183 | T5: 59.6 % | V5: 1985 | W5: 9. | X5: SoJy | Y5: 4. | AC5: 24.
B6: 1986 | C6: 11. | D6: SoJy | E6: 16 | F6: 36 | G6: 57 | H6: =PRODUCT(F6/G6) -> 63.2 % | I6: 23 | J6: 37 | K6: =PRODUCT(I6/J6) -> 62.2 % | L6: 15 | M6: 18 | N6: =PRODUCT(L6/M6) -> 83.3 % | O6: 6 | P6: 17 | Q6: =PRODUCT(O6/P6) -> 35.3 % | R6: 80 | S6: 129 | T6: 62.0 % | V6: 1986 | W6: 11. | X6: SoJy | Y6: 22.
B7: 1987 | C7: 4. | D7: SiiPo | E7: 22 | F7: 46 | I7: 20 | L7: 12 | O7: 4 | R7: =PRODUCT(F7+I7+L7+O7) -> 82 | S7: 166 | T7: =PRODUCT(R7/S7) -> 49.4 % | V7: 1987 | W7: 4. | X7: SiiPo | Y7: 12.
B8: 1988 | C8: 8. | D8: KiU | E8: 22 | F8: 52 | G8: 78 | H8: =PRODUCT(F8/G8) -> 66.7 % | I8: 30 | J8: 40 | K8: =PRODUCT(I8/J8) -> 75.0 % | L8: 19 | M8: 34 | N8: =PRODUCT(L8/M8) -> 55.9 % | O8: 12 | P8: 27 | Q8: =PRODUCT(O8/P8) -> 44.4 % | R8: =PRODUCT(F8+I8+L8+O8) -> 113 | S8: 179 | T8: 63.1 % | V8: 1988 | W8: 8. | X8: KiU | Y8: 8. | AC8: 22.
B9: 1989 | C9: 12. | D9: KiU | E9: 22 | F9: 42 | I9: 44 | L9: 20 | O9: 6 | R9: =PRODUCT(F9+I9+L9+O9) -> 112 | S9: 164 | T9: =PRODUCT(R9/S9) -> 68.3 % | V9: 1989 | W9: 12. | X9: KiU | Y9: 16. | Z9: 8. | AC9: 17.
B10: 1990 | C10: 2. | D10: SoJy | E10: 26 | F10: 38 | G10: 73 | H10: =PRODUCT(F10/G10) -> 52.1 % | I10: 47 | J10: 77 | K10: =PRODUCT(I10/J10) -> 61.0 % | L10: 18 | M10: 32 | N10: =PRODUCT(L10/M10) -> 56.3 % | O10: 8 | P10: 25 | Q10: =PRODUCT(O10/P10) -> 32.0 % | R10: 111 | S10: 207 | T10: =PRODUCT(R10/S10) -> 53.6 % | V10: 1990 | W10: 2. | X10: SoJy | Z10: 23.
B11: 1991 | C11: 2. | D11: SoJy | E11: 25 | F11: 24 | G11: 57 | H11: =PRODUCT(F11/G11) -> 42.1 % | I11: 34 | J11: 61 | K11: =PRODUCT(I11/J11) -> 55.7 % | L11: 19 | M11: 33 | N11: =PRODUCT(L11/M11) -> 57.6 % | O11: 11 | P11: 29 | Q11: =PRODUCT(O11/P11) -> 37.9 % | R11: =PRODUCT(F11+I11+L11+O11) -> 88 | S11: 180 | T11: =PRODUCT(R11/S11) -> 48.9 % | V11: 1991 | W11: 2. | X11: SoJy
B12: 1992 | C12: 1. | D12: SoJy | E12: 25 | F12: 18 | G12: 48 | H12: =PRODUCT(F12/G12) -> 37.5 % | I12: 13 | J12: 52 | K12: =PRODUCT(I12/J12) -> 25.0 % | L12: 16 | M12: 34 | N12: =PRODUCT(L12/M12) -> 47.1 % | O12: 20 | P12: 46 | Q12: =PRODUCT(O12/P12) -> 43.5 % | R12: 67 | S12: 180 | T12: 37.2 % | V12: 1992 | W12: 1. | X12: SoJy
B13: 1993 | C13: 1. | D13: SoJy | E13: 27 | F13: 36 | G13: 64 | H13: =PRODUCT(F13/G13) -> 56.3 % | I13: 18 | J13: 69 | K13: =PRODUCT(I13/J13) -> 26.1 % | L13: 33 | M13: 53 | N13: =PRODUCT(L13/M13) -> 62.3 % | O13: 28 | P13: 62 | Q13: =PRODUCT(O13/P13) -> 45.2 % | R13: 115 | S13: 248 | T13: 46.4 % | V13: 1993 | W13: 1. | X13: SoJy | AB13: 23.
B14: 1994 | C14: 2. | D14: SoJy | E14: 12 | F14: 20 | G14: 24 | H14: =PRODUCT(F14/G14) -> 83.3 % | I14: 2 | J14: 14 | K14: =PRODUCT(I14/J14) -> 14.3 % | L14: 9 | M14: 20 | N14: =PRODUCT(L14/M14) -> 45.0 % | O14: 4 | P14: 8 | Q14: =PRODUCT(O14/P14) -> 50.0 % | R14: 35 | S14: 66 | T14: 53.0 % | V14: 1994 | W14: 2. | X14: SoJy
B15: Yhteensä | E15: =SUM(E4:E14) -> 241 | F15: =SUM(F4:F14)-88 -> 364 | G15: =SUM(G4:G14) -> 610 | H15: =PRODUCT(F15/G15) -> 59.7 % | I15: =SUM(I4:I14)-64 -> 206 | J15: =SUM(J4:J14) -> 427 | K15: =PRODUCT(I15/J15) -> 48.2 % | L15: =SUM(L4:L14)-32 -> 161 | M15: =SUM(M4:M14) -> 286 | N15: =PRODUCT(L15/M15) -> 56.3 % | O15: =SUM(O4:O14)-10 -> 102 | P15: =SUM(P4:P14) -> 252 | Q15: =PRODUCT(O15/P15) -> 40.5 % | R15: =SUM(R4:R14) -> 1027 | S15: =SUM(S4:S14) -> 1905 | T15: =PRODUCT(R15/S15) -> 53.9 %
B17: KÄRKILYÖNNIT YLEMMISSÄ PUDOTUSPELEISSÄ | V17: VUOSITTAISET SIJOITUKSET TOP - 30
G18: 0 > 1 | J18: 1 > 2 | M18: 2 > 3 | P18: 3 > k | S18: Yhteensä
B19: Vuosi | C19: Sija | D19: Seura | E19: OTT | F19: KL | G19: YHT | H19: % | I19: KL | J19: YHT | K19: % | L19: KL | M19: YHT | N19: % | O19: KL | P19: YHT | Q19: % | R19: KL | S19: YHT | T19: % | V19: Vuosi | W19: Sija | X19: Seura | Y19: 0 > 1 | Z19: 1 > 2 | AA19: 2 > 3 | AB19: 3 > k | AC19: KL
B20: 1984 | C20: 6. | D20: SoJy | V20: 1984 | W20: 6. | X20: SoJy
B21: 1985 | C21: 8. | D21: SoJy | V21: 1985 | W21: 8. | X21: SoJy
B22: 1986 | C22: 12. | D22: SoJy | V22: 1986 | W22: 12. | X22: SoJy
B23: 1987 | C23: 6. | D23: SiiPo | E23: 2 | F23: 7 | G23: 10 | H23: 70.0 % | I23: 2 | J23: 2 | K23: 100.0 % | L23: 3 | M23: 5 | N23: 60.0 % | O23: 0 | P23: 0 | Q23: 0.0 % | R23: 12 | S23: 17 | T23: 70.6 % | V23: 1987 | W23: 6. | X23: SiiPo | Y23: 13.
B24: 1988 | C24: 4. | D24: KiU | E24: 7 | F24: 18 | G24: 25 | H24: 72.0 % | I24: 11 | J24: 16 | K24: 68.8 % | L24: 6 | M24: 13 | N24: 46.2 % | O24: 1 | P24: 5 | Q24: 20.0 % | R24: 36 | S24: 59 | T24: 61.0 % | V24: 1988 | W24: 4. | X24: KiU | Y24: 2. | Z24: 7. | AA24: 15. | AC24: 7.
B25: 1989 | C25: 9. | D25: KiU | V25: 1989 | W25: 9. | X25: KiU
B26: 1990 | C26: 1. | D26: SoJy | E26: 9 | F26: 18 | G26: 30 | H26: 60.0 % | I26: 12 | J26: 20 | K26: 60.0 % | L26: 3 | M26: 8 | N26: 37.5 % | O26: 4 | P26: 14 | Q26: 28.6 % | R26: 37 | S26: 72 | T26: 51.4 % | V26: 1990 | W26: 1. | X26: SoJy | Y26: 4. | Z26: 9. | AB26: 24. | AC26: 11.
B27: 1991 | C27: 2. | D27: SoJy | E27: 7 | F27: 8 | G27: 19 | H27: 42.1 % | I27: 7 | J27: 13 | K27: 53.8 % | L27: 4 | M27: 10 | N27: 40.0 % | O27: 5 | P27: 5 | Q27: 100.0 % | R27: 24 | S27: 47 | T27: 51.1 % | V27: 1991 | W27: 2. | X27: SoJy | Y27: 15. | Z27: 23. | AA27: 30. | AB27: 16. | AC27: 23.
B28: 1992 | C28: 1. | D28: SoJy | E28: 7 | F28: 9 | G28: 13 | H28: 69.2 % | I28: 3 | J28: 16 | K28: 18.8 % | L28: 9 | M28: 16 | N28: 56.3 % | O28: 0 | P28: 10 | Q28: 0.0 % | R28: 21 | S28: 55 | T28: 38.2 % | V28: 1992 | W28: 1. | X28: SoJy | Y28: 13. | AA28: 12. | AC28: 29.
B29: 1993 | C29: 1. | D29: SoJy | E29: 8 | F29: 19 | G29: 21 | H29: 90.5 % | I29: 14 | J29: 22 | K29: 63.6 % | L29: 10 | M29: 16 | N29: 62.5 % | O29: 2 | P29: 12 | Q29: 16.7 % | R29: 45 | S29: 71 | T29: 63.4 % | V29: 1993 | W29: 1. | X29: SoJy | Y29: 7. | Z29: 13. | AA29: 18. | AC29: 11.
B30: 1994 | C30: 3. | D30: SoJy | E30: 4 | F30: 15 | G30: 17 | H30: 88.2 % | I30: 1 | J30: 3 | K30: 33.3 % | L30: 4 | M30: 7 | N30: 57.1 % | O30: 3 | P30: 6 | Q30: 50.0 % | R30: 23 | S30: 33 | T30: 69.7 % | V30: 1994 | W30: 3. | X30: SoJy | Y30: 2. | AA30: 19. | AB30: 12. | AC30: 8.
B31: Yhteensä | E31: =SUM(E18:E30) -> 44 | F31: =SUM(F20:F30) -> 94 | G31: =SUM(G20:G30) -> 135 | H31: =PRODUCT(F31/G31) -> 69.6 % | I31: =SUM(I20:I30) -> 50 | J31: =SUM(J20:J30) -> 92 | K31: =PRODUCT(I31/J31) -> 54.3 % | L31: =SUM(L20:L30) -> 39 | M31: =SUM(M20:M30) -> 75 | N31: =PRODUCT(L31/M31) -> 52.0 % | O31: =SUM(O20:O30) -> 15 | P31: =SUM(P20:P30) -> 52 | Q31: =PRODUCT(O31/P31) -> 28.8 % | R31: =SUM(R20:R30) -> 198 | S31: =SUM(S20:S30) -> 354 | T31: =PRODUCT(R31/S31) -> 55.9 %
B33: KÄRKILYÖNNIT
G34: 0 > 1 | J34: 1 > 2 | M34: 2 > 3 | P34: 3 > k | S34: Yhteensä
E35: OTT | F35: KL | G35: YHT | H35: % | I35: KL | J35: YHT | K35: % | L35: KL | M35: YHT | N35: % | O35: KL | P35: YHT | Q35: % | R35: KL | S35: YHT | T35: %
B36: RUNKOSARJA | E36: =PRODUCT(E15) -> 241 | F36: =PRODUCT(F15) -> 364 | G36: =PRODUCT(G15) -> 610 | H36: =PRODUCT(H15) -> 59.7 % | I36: =PRODUCT(I15) -> 206 | J36: =PRODUCT(J15) -> 427 | K36: =PRODUCT(K15) -> 48.2 % | L36: =PRODUCT(L15) -> 161 | M36: =PRODUCT(M15) -> 286 | N36: =PRODUCT(N15) -> 56.3 % | O36: =PRODUCT(O15) -> 102 | P36: =PRODUCT(P15) -> 252 | Q36: =PRODUCT(Q15) -> 40.5 % | R36: =PRODUCT(R15) -> 1027 | S36: =PRODUCT(S15) -> 1905 | T36: =PRODUCT(T15) -> 53.9 %
B37: PLAY OFF | E37: =PRODUCT(E31) -> 44 | F37: =PRODUCT(F31) -> 94 | G37: 135 | H37: 69.6 % | I37: 50 | J37: 92 | K37: 54.3 % | L37: 39 | M37: 75 | N37: 52.0 % | O37: 15 | P37: 52 | Q37: 28.8 % | R37: 198 | S37: 354 | T37: 55.9 %
